[Event "LR Global GM Aspirant-1 2024"]
[Site "Dhaka"]
[Date "2024.02.13"]
[Round "1.1"]
[White "Mohammad Fahad, Rahman"]
[Black "De Silva, L M S T"]
[Result "1-0"]
[ECO "C58"]
[WhiteElo "2418"]
[BlackElo "2398"]
[Annotator "RC"]
[PlyCount "121"]
[EventDate "2024.02.12"]
[EventType "tourn"]
[EventCountry "BAN"]
[SourceTitle "playchess.com"]
[Source "ChessBase"]
[SourceQuality "1"]
[TimeControl "5400+30"]

1. e4 {[%emt 0:00:30]} e5 {[%emt 0:00:30]} 2. Nf3 {[%emt 0:00:30]} Nc6 {[%emt 0:00:30]} 3. Bc4 {[%emt 0:00:30]} Nf6 {[%emt 0:00:30]} 4. Ng5 {[%emt 0:00:30]} d5 {[%emt 0:00:30]} 5. exd5 {[%emt 0:00:30]} Na5 {[%emt 0:00:30]} 6. Bb5+ {[%emt 0:00:30]} c6 {[%emt 0:00:30]} 7. dxc6 {[%emt 0:00:30]} bxc6 {[%emt 0:00:30]} 8. Bd3 {[%emt 0:00:30]} Nd5 {[%emt 0:00:30]} 9. Nf3 {[%emt 0:00:30]} Bd6 {[%emt 0:00:30]} 10. O-O {[%emt 0:00:30]} Nf4 {[%emt 0:00:30]} 11. Re1 {[%emt 0:00:30]} Nxd3 {[%emt 0:00:30]} 12. cxd3 {[%emt 0:00:30]} O-O {[%emt 0:00:30]} 13. Nc3 {[%emt 0:00:30]} Re8 {[%emt 0:00:30]} 14. a3 {[%emt 0:00:30]} c5 {[%emt 0:00:30]} 15. b4 {[%emt 0:00:30]} cxb4 {[%emt 0:00:30]} 16. axb4 {[%emt 0:00:30]} Nc6 {[%emt 0:00:30]} 17. b5 {[%emt 0:00:30]} Nb4 {[%emt 0:00:30]} 18. Ba3 {[%emt 0:00:30]} Nxd3 {[%emt 0:00:30]} 19. Re3 {[%emt 0:00:30]} Bxa3 {[%emt 0:00:30]} 20. Rxa3 {[%emt 0:00:30]} Bb7 {[%emt 0:00:30]} 21. Ne4 {[%emt 0:00:30]} Nf4 {[%emt 0:00:30]} 22. Qb3 {[%emt 0:00:30]} Bd5 {[%emt 0:00:30]} 23. Qb2 {[%emt 0:00:30]} f5 {[%emt 0:00:30]} 24. Ng3 {[%emt 0:00:30]} Bxf3 {[%emt 0:00:30]} 25. Rxf3 {[%emt 0:00:30]} g6 {[%emt 0:00:30]} 26. h3 {[%emt 0:00:30]} Qd5 {[%emt 0:00:30]} 27. d4 {[%emt 0:00:30]} Rab8 {[%emt 0:00:30]} 28. dxe5 {[%emt 0:00:30]} Rxb5 {[%emt 0:00:30]} 29. Qc1 {[%emt 0:00:30]} Ne6 {[%emt 0:00:30]} 30. Rxa7 {[%emt 0:00:30]} f4 {[%emt 0:00:30]} 31. Ne2 {[%emt 1:26:57]} Rc5 {[%emt 1:29:58]} 32. Qb2 {[%emt 0:00:15]} Rf8 {[%emt 0:00:51]} 33. Re7 {[%emt 0:01:40]} Rb5 {[%emt 0:00:38]} 34. Nc3 {[%emt 0:01:02]} Qxf3 {[%emt 0:00:31]} 35. Nxb5 {[%emt 0:00:55]} Qd5 {[%emt 0:00:14]} 36. Nc3 {[%emt 0:00:32]} Qc4 {[%emt 0:00:42]} 37. Qb6 {[%emt 0:00:38]} Ng5 {[%emt 0:01:06]} 38. Rc7 {[%emt 0:02:31]} Qd3 {[%emt 0:00:00]} 39. h4 {[%emt 0:00:00]} Nf7 {[%emt 0:00:27]} 40. e6 {[%emt 0:00:00]} Nd6 {[%emt 0:00:29]} 41. e7 {[%emt 0:00:00]} Re8 {[%emt 0:00:30]} 42. Qc6 {[%emt 0:00:23]} Qd2 {[%emt 0:00:30]} 43. Qf3 {[%emt 0:00:30]} Nf5 {[%emt 0:00:30]} 44. Ne4 {[%emt 0:00:30]} Qe1+ {[%emt 0:00:30]} 45. Kh2 {[%emt 0:00:30]} Rxe7 {[%emt 0:00:30]} 46. Rxe7 {[%emt 0:00:30]} Nxe7 {[%emt 0:00:30]} 47. Qxf4 {[%emt 0:00:21]} Qa5 {[%emt 0:01:04]} 48. Qd6 Qa7 {[%emt 0:00:00]} 49. Qe6+ {[%emt 0:01:13]} Kg7 {[%emt 0:00:23]} 50. Qe5+ {[%emt 0:00:17]} Kg8 {[%emt 0:00:31]} 51. Nf6+ {[%emt 0:00:05]} Kf7 {[%emt 0:00:09]} 52. Qf4 {[%emt 0:01:38]} Kg7 {[%emt 0:00:28]} 53. Ne8+ {[%emt 0:00:42]} Kg8 {[%emt 0:00:02]} 54. Nd6 {[%emt 0:00:17]} Nd5 {[%emt 0:01:26]} 55. Qe5 {[%emt 0:00:30]} Qa8 {[%emt 0:00:30]} 56. Ne8 {[%emt 0:00:30]} Kf7 {[%emt 0:00:30]} 57. Nd6+ {[%emt 0:00:30]} Kg8 {[%emt 0:00:30]} 58. Qe6+ {[%emt 0:00:30]} Kg7 {[%emt 0:00:30]} 59. Qf7+ {[%emt 0:00:30]} Kh6 {[%emt 0:00:30]} 60. g4 {[%emt 0:00:30]} Nf6 {[%emt 0:00:30]} 61. Nf5+ {[%emt 0:00:30]} 1-0

[Event "LR Global GM Aspirant-1 2024"]
[Site "Dhaka"]
[Date "2024.02.13"]
[Round "1.2"]
[White "Siddharth, Jagadeesh"]
[Black "Panesar Vedant"]
[Result "1-0"]
[ECO "D00"]
[WhiteElo "2457"]
[BlackElo "2452"]
[Annotator "TA"]
[PlyCount "59"]
[EventDate "2024.02.12"]
[EventType "tourn"]
[EventCountry "BAN"]
[SourceTitle "playchess.com"]
[Source "ChessBase"]
[SourceQuality "1"]
[TimeControl "5400+30"]

{[%evp 9,59,-12,0,-1,-3,-4,-1,-7,0,0,0,0,0,0,0,0,0,0,5,17,36,35,38,28,41,41,47,44,60,58,56,55,70,68,118,103,139,147,156,173,499,501,512,502,642,638,634,604,1426,1427,1344,1334]} 1. d4 {[%emt 0:00:14]} Nf6 {[%emt 0:00:05]} 2. Nc3 {[%emt 0:00:14]} d5 {[%emt 0:00:06]} 3. Bf4 {[%emt 0:00:08]} e6 {[%emt 0:00:07]} 4. Nb5 {[%emt 0:00:06]} Bb4+ {[%emt 0:00:06]} 5. c3 {[%emt 0:00:08]} Ba5 {[%emt 0:00:03]} 6. e3 {[%emt 0:00:14]} O-O {[%emt 0:00:32]} 7. Nf3 {[%emt 0:00:15]} a6 {[%emt 0:00:06]} 8. Na3 {[%emt 0:00:06] The position is equal.} Qe7 {[%emt 0:01:02][%cal Oa5c3]} 9. Nb1 {[%emt 0:00:21]} Nh5 {[%emt 0:01:39]} 10. Bg5 {[%emt 0:00:09]} f6 {[%emt 0:00:06]} 11. Bh4 {[%emt 0:00:09]} g5 {[%emt 0:00:15]} 12. g4 {[%emt 0:00:18]} gxh4 {[%emt 0:00:07]} 13. gxh5 {[%emt 0:00:06]} Nc6 {[%emt 0:09:38]} 14. Nbd2 {[%emt 0:10:20]} ({Much weaker is} 14. Nxh4 e5 15. Rg1+ Kh8 $17) 14... Bd7 {[%emt 0:09:51][%cal Bc8d7,Bd7e8,Be8h5][%mdl 32]} 15. Qc2 {[%emt 0:01:22]} f5 {[%emt 0:10:05]} 16. O-O-O {[%emt 0:04:10]} Kh8 {[%emt 0:01:42]} 17. Rg1 {[%emt 0:05:33]} Be8 {[%emt 0:06:09]} 18. h6 {[%emt 0:02:23]} Qf6 {[%emt 0:00:39][%cal Oa5b6]} 19. Ng5 {[%emt 0:04:39]} Bh5 {[%emt 0:02:42]} 20. Re1 {[%emt 0:00:51][%cal Bd1e1,Be1e2,Be2g2,Bg2g5,Bg5g6,Bg6h6][%mdl 32]} Qxh6 {[%emt 0:01:07]} 21. f4 {[%emt 0:00:10]} Qf6 {[%emt 0:01:20]} (21... Bb6 $14) 22. Be2 $16 {[%emt 0:02:23]} Bxe2 {[%emt 0:05:10]} 23. Rxe2 {[%emt 0:00:09]} h6 {[%emt 0:09:42]} 24. Reg2 {[%emt 0:00:45][%cal Oc2d1] Qd1! would now be deadly.} hxg5 $2 {[%emt 0:10:07]} (24... Rg8 {is a better chance.}) 25. Rxg5 $18 {[%emt 0:01:15] Threatening mate with Rh5+. White is clearly winning.} Rf7 {[%emt 0:01:20][%cal Bf8f7,Bf7h7,Bh7g7][%mdl 32]} 26. Rg6 {[%emt 0:04:32]} Qe7 {[%emt 0:07:30] [#]} 27. Nf3 $1 {[%emt 0:00:07] White wants to mate with Qg2.} Rh7 {[%emt 0:10:17] [#]} 28. Ng5 {[%emt 0:00:19][%cal Oc2e2] Wards off Qf7. Strongly threatening Qe2!} Rg7 {[%emt 0:00:29]} 29. Rh6+ {[%emt 0:00:43]} (29. Rxe6 $2 Qxe6 (29... Rxg5 30. Rh6+ Kg7 31. Rxg5+ Kxh6 32. Qf2 $16) 30. Qd3 Qg6 $19) 29... Kg8 {[%emt 0:00:02]} 30. Qd1 {[%emt 0:00:11] Weighted Error Value: White=0.01 (flawless) /Black=0.32.  Mistake:       	---       	Black=2      Inaccurate:     	---       	Black=1      OK:         	White=12    	Black=9      Best:        	White=3     	---        Strong:       	White=1     	---} (30. Rxe6 $2 {is the wrong capture.} Qxe6 31. Kd2 Qf6 $19) 1-0

[Event "LR Global GM Aspirant-1 2024"]
[Site "Dhaka"]
[Date "2024.02.13"]
[Round "1.3"]
[White "Aradhya, Garg"]
[Black "Liyanage, Ranindu Dilshan"]
[Result "0-1"]
[ECO "D35"]
[WhiteElo "2390"]
[BlackElo "2366"]
[Annotator "TA"]
[PlyCount "100"]
[EventDate "2024.02.12"]
[EventType "tourn"]
[EventCountry "BAN"]
[SourceTitle "playchess.com"]
[Source "ChessBase"]
[SourceQuality "1"]
[TimeControl "5400+30"]

{[%evp 20,100,36,29,37,39,47,42,45,30,29,26,1060,15,21,14,12,13,14,0,12,-14,-26,-43,-54,-80,-31,-61,-50,-120,-97,-117,-107,-108,-108,-95,-101,-103,-113,-104,-67,-127,-136,-298,-310,-292,-281,-275,-251,-233,-242,-389,-393,-436,-416,-519,-509,-512,-507,-783,-685,-843,-836,-1053,-867,-859,-859,-810,-779,-1125,-1014,-2018,-1903,-2482,-1664,-5065,-4510,-2742,-2727,-29988,-29989,-29989,-29990]} 1. c4 {[%emt 0:00:02]} e6 {[%emt 0:00:32]} 2. Nc3 {[%emt 0:00:10]} d5 {[%emt 0:00:18]} 3. d4 {[%emt 0:00:07]} Nf6 {[%emt 0:00:47]} 4. cxd5 {[%emt 0:00:08]} exd5 {[%emt 0:00:09]} 5. Bg5 {[%emt 0:00:06]} c6 {[%emt 0:00:21]} 6. e3 {[%emt 0:00:26]} h6 {[%emt 0:00:32]} 7. Bh4 {[%emt 0:00:10]} Be7 {[%emt 0:00:31]} 8. Bd3 {[%emt 0:00:07]} O-O {[%emt 0:00:31]} 9. Bg3 {[%emt 0:11:11] D35: Queen's Gambit Declined: Exchange Variation.} a5 $146 {[%emt 0:12:24]} ({Predecessor:} 9... Re8 10. Nf3 Nh5 11. Be5 Nd7 12. h3 Nhf6 13. Bh2 Bb4 14. Qc2 Qe7 15. O-O Bd6 16. Bxd6 Qxd6 {1-0 Duda,J (2726)-Murzin,V (2633) FIDE Grand Swiss 2023 (3)}) 10. Nf3 {[%emt 0:05:04]} Nbd7 {[%emt 0:04:04]} 11. h3 {[%emt 0:00:45]} b5 {[%emt 0:06:34]} 12. O-O {[%emt 0:00:42]} Ba6 {[%emt 0:02:03]} 13. Rc1 {[%emt 0:00:57]} Qb6 {[%emt 0:02:03]} 14. Qe2 {[%emt 0:09:03]} b4 {[%emt 0:12:42]} 15. Na4 {[%emt 0:01:22]} Bb5 $2 {[%emt 0:01:07][%mdl 8192]} (15... Bxd3 $11 16. Qxd3 Qb5 17. Qxb5 cxb5) 16. Bxb5 $2 {[%emt 0:00:16]} ({White must play} 16. Nxb6 $18 Nxb6 17. Ne5 (17. Bxb5 cxb5 18. Rc7 Bd8 $18)) 16... Qxb5 $11 {[%emt 0:00:06]} 17. Qxb5 {[%emt 0:01:16]} cxb5 {[%emt 0:00:06]} 18. Nc5 {[%emt 0:00:05]} Rfc8 {[%emt 0:02:11]} 19. Nd3 {[%emt 0:15:19]} Ne4 {[%emt 0:02:59]} 20. Bh2 {[%emt 0:01:56]} Nb6 {[%emt 0:05:17]} 21. Nfe5 {[%emt 0:03:49]} Nc4 $1 {[%emt 0:04:27]} 22. Nf4 {[%emt 0:00:59]} Nf6 {[%emt 0:03:28]} (22... Nxb2 $17 {White must now prevent ...Nc3.} 23. Nxd5 Bh4) 23. Rc2 {[%emt 0:14:16]} a4 {[%emt 0:07:06]} 24. Nfd3 {[%emt 0:01:32]} (24. Re2 $1 $15) 24... Ne4 {[%emt 0:03:14]} 25. f3 {[%emt 0:02:53]} Nxe3 {[%emt 0:04:51]} 26. Rxc8+ {[%emt 0:05:34]} Rxc8 {[%emt 0:00:06]} 27. Rc1 {[%emt 0:04:33]} Rxc1+ {[%emt 0:01:34]} 28. Nxc1 {[%emt 0:00:02] [#]} Ng5 $1 {[%emt 0:04:31]} 29. Nc6 {[%emt 0:01:09]} Bf8 {[%emt 0:03:33]} 30. Na7 {[%emt 0:21:31] [#]} ({White should play} 30. b3 $15) 30... Nd1 $1 $17 {[%emt 0:02:09]} 31. Nd3 $2 {[%emt 0:00:00]} (31. Nxb5 $17 {keeps fighting.} Nxb2 32. Nc7) 31... Nxb2 $19 {[%emt 0:02:40]} ({Stronger than} 31... Ne6 32. Nxb5 Ne3 33. Bd6 $11) 32. Nc1 {[%emt 0:00:00]} (32. Nxb2 $2 {too greedy.} a3 33. Nd1 b3 $19) 32... Ne6 {[%emt 0:02:49]} 33. Nxb5 {[%emt 0:00:00]} Nd1 {[%emt 0:01:06]} 34. Kf1 {[%emt 0:00:00]} Ne3+ {[%emt 0:01:26]} 35. Ke2 {[%emt 0:00:00]} (35. Kf2 $142 Nf5 36. Ke1) 35... Nxg2 $19 {[%emt 0:01:03]} 36. Nd3 {[%emt 0:00:00]} g5 {[%emt 0:01:30]} 37. Nc7 {[%emt 0:00:00]} Nxd4+ {[%emt 0:01:14]} 38. Kf2 {[%emt 0:00:00]} Nh4 {[%emt 0:00:44]} 39. f4 {[%emt 0:00:00]} (39. Nxd5 $142 Ndxf3 (39... Nhxf3 $2 40. Bb8 $19) 40. Bc7) 39... a3 {[%emt 0:02:45]} 40. Nc1 {[%emt 0:00:00]} Bc5 {[%emt 0:00:58]} 41. Na6 {[%emt 0:00:00]} Nb3+ {[%emt 0:01:20]} 42. Nxc5 {[%emt 0:00:00]} Nxc1 {[%emt 0:00:05]} 43. fxg5 {[%emt 0:00:00]} hxg5 {[%emt 0:00:27]} 44. Ke3 {[%emt 0:00:00]} Nxa2 {[%emt 0:01:06]} 45. Be5 {[%emt 0:00:00]} Nc1 {[%emt 0:01:20]} 46. Bf6 {[%emt 0:00:00]} b3 {[%emt 0:00:10]} 47. Kd2 {[%emt 0:00:00]} b2 {[%emt 0:00:07]} 48. Kc2 {[%emt 0:00:00]} Nf3 {[%emt 0:00:17]} 49. Na4 {[%emt 0:00:35]} d4 {[%emt 0:00:20]} 50. Nxb2 {[%emt 0:00:25]} a2 {[%emt 0:01:03]} 0-1

[Event "LR Global GM Aspirant-1 2024"]
[Site "Dhaka"]
[Date "2024.02.13"]
[Round "1.4"]
[White "Mayank Chakraborty"]
[Black "Rahman, Ziaur"]
[Result "1-0"]
[ECO "D31"]
[WhiteElo "2409"]
[BlackElo "2428"]
[Annotator "TA"]
[PlyCount "141"]
[EventDate "2024.02.12"]
[EventType "tourn"]
[EventCountry "BAN"]
[SourceTitle "playchess.com"]
[Source "ChessBase"]
[SourceQuality "1"]
[TimeControl "5400+30"]

{[%evp 56,141,8,8,14,8,20,10,20,10,10,0,0,0,0,0,0,0,3,6,8,11,16,0,0,0,0,0,5,5,5,5,30,30,30,30,30,30,143,143,143,65,58,7,16,18,34,66,77,0,0,0,0,0,0,0,18,18,26,28,112,116,186,83,103,125,117,0,0,0,0,0,0,0,0,0,0,0,320,276,1510,1322,1525,767,5077,5069,29975,29975]} 1. d4 {[%emt 0:00:03]} d5 {[%emt 0:00:47]} 2. c4 {[%emt 0:00:05]} e6 {[%emt 0:00:05]} 3. Nc3 {[%emt 0:00:03]} c6 {[%emt 0:00:07]} 4. cxd5 {[%emt 0:00:03]} exd5 {[%emt 0:00:07]} 5. Bf4 {[%emt 0:00:08]} Bd6 {[%emt 0:00:54]} 6. Bxd6 {[%emt 0:00:38]} Qxd6 {[%emt 0:00:03]} 7. e3 {[%emt 0:00:32]} Ne7 {[%emt 0:01:47]} 8. Bd3 {[%emt 0:00:46]} Bf5 {[%emt 0:01:18]} 9. Nge2 {[%emt 0:01:11]} Bxd3 {[%emt 0:00:50]} 10. Qxd3 {[%emt 0:00:08]} O-O {[%emt 0:01:06]} 11. O-O {[%emt 0:00:56]} Nd7 {[%emt 0:01:03]} 12. Ng3 {[%emt 0:01:27]} Qg6 {[%emt 0:01:42]} 13. Qxg6 {[%emt 0:00:44]} hxg6 {[%emt 0:00:16]} 14. f3 {[%emt 0:04:06]} Nf5 {[%emt 0:02:09]} 15. Kf2 {[%emt 0:01:47]} Nb6 {[%emt 0:00:58]} 16. Rfe1 {[%emt 0:04:55]} Rfe8 {[%emt 0:00:22]} 17. Nf1 {[%emt 0:07:52]} Re6 {[%emt 0:06:06]} 18. Rad1 {[%emt 0:01:06]} Rae8 {[%emt 0:04:53]} 19. b3 {[%emt 0:06:29]} Nd6 {[%emt 0:01:41]} 20. Ng3 {[%emt 0:00:39]} Nf5 {[%emt 0:01:22]} 21. Nf1 {[%emt 0:02:39]} Nd6 {[%emt 0:00:22]} 22. g4 {[%emt 0:03:33]} Na8 {[%emt 0:16:39]} 23. Ng3 {[%emt 0:02:13]} Nc7 {[%emt 0:01:06]} 24. Na4 {[%emt 0:06:09]} R6e7 {[%emt 0:02:34]} 25. h4 {[%emt 0:04:22]} f6 {[%emt 0:01:55]} 26. Nb2 {[%emt 0:05:27]} Ne6 {[%emt 0:04:19]} 27. Nd3 {[%emt 0:04:20]} Nf8 {[%emt 0:04:24]} 28. Nf4 {[%emt 0:04:48]} Kf7 {[%emt 0:00:21]} 29. a4 {[%emt 0:07:50]} Ne6 {[%emt 0:01:16]} 30. Nd3 {[%emt 0:01:08]} Nf8 {[%emt 0:05:23]} 31. Re2 {[%emt 0:01:14]} Ne6 {[%emt 0:01:09]} 32. Nc5 {[%emt 0:04:04]} Kg8 {[%emt 0:02:51]} 33. Nxe6 {[%emt 0:04:01]} Rxe6 {[%emt 0:00:05]} 34. Rh1 {[%emt 0:01:50]} Kh7 {[%emt 0:04:02]} 35. Rhe1 {[%emt 0:02:27]} Kg8 {[%emt 0:02:40]} 36. Rh1 {[%emt 0:04:13]} Kh7 {[%emt 0:00:34]} 37. h5 {[%emt 0:00:04]} g5 {[%emt 0:00:32]} 38. Rhe1 {[%emt 0:00:08]} Rd8 {[%emt 0:04:08]} 39. e4 {[%emt 0:02:10]} dxe4 {[%emt 0:00:29]} 40. Nxe4 {[%emt 0:00:11]} Nxe4+ {[%emt 0:00:24]} 41. Rxe4 {[%emt 0:00:06]} Rxe4 {[%emt 0:00:21]} 42. Rxe4 {[%emt 0:00:05]} Rd7 {[%emt 0:00:32]} 43. Ke3 {[%emt 0:00:53]} Kg8 {[%emt 0:04:12]} 44. Re8+ {[%emt 0:01:15]} Kf7 {[%emt 0:00:24]} 45. Rh8 {[%emt 0:01:33]} a6 {[%emt 0:02:15]} 46. b4 {[%emt 0:02:46]} f5 {[%emt 0:00:50]} (46... Re7+ $11 {keeps the balance.} 47. Kd3 Ke6) 47. gxf5 $16 {[%emt 0:02:21]} Kf6 {[%emt 0:22:37]} 48. Re8 {[%emt 0:00:59]} (48. Rf8+ $16 Ke7 49. Rh8) 48... Kxf5 $14 {[%emt 0:00:00]} 49. a5 {[%emt 0:02:26]} (49. Rf8+ $14 Ke6 50. Ke4) 49... Kf6 {[%emt 0:00:00]} 50. Ke4 {[%emt 0:01:22]} g6 {[%emt 0:00:00]} 51. h6 {[%emt 0:01:06]} Rh7 {[%emt 0:00:00]} 52. Rf8+ {[%emt 0:00:35]} (52. d5 $1 $16 {[%cal Rd5d6]} Rxh6 53. dxc6 bxc6 54. Kd4 Rh4+ 55. Kc5) 52... Ke6 $11 {[%emt 0:00:00]} 53. Rg8 {[%emt 0:00:08]} Rxh6 {[%emt 0:00:00]} 54. Rg7 {[%emt 0:00:04]} Rh4+ {[%emt 0:00:00]} 55. Ke3 {[%emt 0:00:22]} Kd5 {[%emt 0:00:00]} 56. Rxg6 {[%emt 0:00:26]} Kc4 {[%emt 0:00:00]} 57. Rxg5 {[%emt 0:00:04]} Rh7 {[%emt 0:00:00]} (57... Rh1 $11 {remains equal.}) 58. f4 $16 {[%emt 0:00:25]} Kxb4 {[%emt 0:00:00] [#]} (58... Rh8 $16 59. Rc5+ Kxb4) 59. Re5 {[%emt 0:01:08]} (59. Rc5 $1 $18 {and the rest is easy.}) 59... b6 $16 {[%emt 0:00:56]} 60. axb6 {[%emt 0:00:03]} a5 {[%emt 0:00:22] [#]} 61. Rc5 {[%emt 0:01:50]} (61. Kd3 $1 $16 {Strongly threatening f5.} a4 62. Re1) 61... a4 $11 {[%emt 0:00:30]} 62. Rxc6 {[%emt 0:00:08]} a3 {[%emt 0:00:04]} 63. Rc1 {[%emt 0:00:25]} (63. Rc7 $5 Rh6 $8 64. f5 $11 (64. b7 Rb6 $11)) 63... a2 {[%emt 0:00:23]} 64. d5 {[%emt 0:00:25]} Rb7 {[%emt 0:00:15]} 65. Kd4 {[%emt 0:00:52]} Rxb6 {[%emt 0:00:01]} 66. Ke5 {[%emt 0:01:30]} Rb8 $2 {[%emt 0:02:23][%mdl 8192]} (66... Ka3 $11 67. Ra1 Rb1 68. Rxa2+ Kxa2) 67. d6 $18 {[%emt 0:00:40]} Re8+ $2 {[%emt 0:00:30]} (67... Ka3) 68. Kd5 $18 {[%emt 0:00:39]} Re2 {[%emt 0:00:05]} 69. d7 {[%emt 0:00:49]} Rd2+ {[%emt 0:00:04]} 70. Ke6 {[%emt 0:00:18]} Kb3 {[%emt 0:00:13]} 71. Re1 {[%emt 0:00:57]} 1-0

[Event "LR Global GM Aspirant-1 2024"]
[Site "Dhaka"]
[Date "2024.02.14"]
[Round "2.1"]
[White "De Silva, L M S T"]
[Black "Barua, Dibyendu"]
[Result "1/2-1/2"]
[ECO "C02"]
[WhiteElo "2398"]
[BlackElo "2404"]
[Annotator "RC"]
[PlyCount "73"]
[EventDate "2024.02.12"]
[EventType "tourn"]
[EventCountry "BAN"]
[SourceTitle "playchess.com"]
[Source "ChessBase"]
[SourceQuality "1"]
[TimeControl "5400+30"]

1. e4 {[%emt 0:12:51]} e6 {[%emt 0:01:39]} 2. d4 {[%emt 0:00:11]} d5 {[%emt 0:00:06]} 3. e5 {[%emt 0:00:18]} c5 {[%emt 0:01:05]} 4. c3 {[%emt 0:00:12]} Nc6 {[%emt 0:00:54]} 5. Nf3 {[%emt 0:00:18]} Qc7 {[%emt 0:06:43]} 6. Bd3 {[%emt 0:07:01]} cxd4 {[%emt 0:04:18]} 7. cxd4 {[%emt 0:00:24]} Nb4 {[%emt 0:00:22]} 8. Bb5+ {[%emt 0:00:24]} Bd7 {[%emt 0:02:12]} 9. Bxd7+ {[%emt 0:00:16]} Qxd7 {[%emt 0:07:55]} 10. a3 {[%emt 0:01:52]} Nc6 {[%emt 0:01:42]} 11. O-O {[%emt 0:00:13]} Nge7 {[%emt 1:09:04]} 12. Nc3 {[%emt 0:02:24]} Nc8 {[%emt 0:00:00]} 13. Ne1 {[%emt 0:08:54]} Nb6 {[%emt 0:00:00]} 14. Ne2 {[%emt 0:02:18]} a5 {[%emt 0:00:00]} 15. Ng3 {[%emt 0:04:26]} a4 {[%emt 0:00:00]} 16. Nh5 {[%emt 0:03:23]} Na5 {[%emt 0:00:00]} 17. Bg5 Nb3 {[%emt 0:03:00]} 18. Rb1 {[%emt 0:10:19]} Qb5 {[%emt 0:00:00]} 19. Nc2 {[%emt 0:04:13]} Qc4 {[%emt 0:00:00]} 20. Be3 {[%emt 0:00:32]} Nd7 {[%emt 0:00:00]} 21. Na1 {[%emt 0:00:30]} Nxa1 {[%emt 0:00:00]} 22. Rxa1 {[%emt 0:00:30]} g6 {[%emt 0:02:30]} 23. Nf6+ {[%emt 0:08:52]} Nxf6 {[%emt 0:00:00]} 24. exf6 {[%emt 0:00:30]} Bd6 {[%emt 0:00:00]} 25. Qd2 {[%emt 0:01:04]} Kd7 {[%emt 0:00:00]} 26. Rac1 {[%emt 0:00:36]} Qb5 {[%emt 0:00:00]} 27. Rc3 {[%emt 0:04:17]} Rhc8 {[%emt 0:00:00]} 28. Rfc1 {[%emt 0:00:45]} Rc6 {[%emt 0:00:00]} 29. Rxc6 {[%emt 0:04:51]} bxc6 {[%emt 0:00:00]} 30. Rc2 {[%emt 0:00:18]} Rb8 {[%emt 0:00:00]} 31. h3 {[%emt 0:02:29]} Qb3 {[%emt 0:00:00]} 32. Bf4 {[%emt 0:01:16]} Bxf4 {[%emt 0:00:00]} 33. Qxf4 {[%emt 0:00:02]} Qxc2 {[%emt 0:00:00]} 34. Qxb8 {[%emt 0:00:04]} Qd1+ {[%emt 0:00:00]} 35. Kh2 {[%emt 0:00:02]} Qxd4 {[%emt 0:00:00]} 36. Qb7+ {[%emt 0:00:26]} Kd6 {[%emt 0:00:00]} 37. Qb8+ {[%emt 0:02:00]} 1/2-1/2

[Event "LR Global GM Aspirant-1 2024"]
[Site "Dhaka"]
[Date "2024.02.14"]
[Round "2.2"]
[White "Rahman, Ziaur"]
[Black "Murshed, Niaz"]
[Result "1-0"]
[ECO "A48"]
[WhiteElo "2428"]
[BlackElo "2363"]
[Annotator "TA"]
[PlyCount "79"]
[EventDate "2024.02.12"]
[EventType "tourn"]
[EventCountry "BAN"]
[SourceTitle "playchess.com"]
[Source "ChessBase"]
[SourceQuality "1"]
[TimeControl "5400+30"]

{[%evp 13,79,0,0,0,0,-4,27,14,35,23,20,8,1,0,6,0,99,122,128,132,118,33,111,81,147,133,208,190,172,170,157,170,176,167,272,269,314,299,270,290,264,202,214,204,216,222,198,197,185,214,299,302,285,312,301,292,302,309,318,302,345,276,350,299,272,293,369,351]} 1. d4 {[%emt 0:00:07]} Nf6 {[%emt 0:01:07]} 2. Bf4 {[%emt 0:00:16]} d6 {[%emt 0:03:11]} 3. Nf3 {[%emt 0:02:16]} g6 {[%emt 0:01:38]} 4. h3 {[%emt 0:01:50]} Bg7 {[%emt 0:00:05]} 5. c3 {[%emt 0:01:33]} O-O {[%emt 0:00:20]} 6. e3 {[%emt 0:00:31]} Nbd7 {[%emt 0:04:15]} 7. Be2 {[%emt 0:00:40]} b6 {[%emt 0:04:10]} 8. O-O {[%emt 0:00:36]} Bb7 {[%emt 0:00:15]} 9. Bh2 {[%emt 0:01:47]} Ne8 {[%emt 0:06:16]} 10. a4 {[%emt 0:05:52][%cal Ba2a4,Ba4a5][%mdl 32] White has an edge.} a6 {[%emt 0:03:08]} 11. Qb3 {[%emt 0:07:41]} e5 {[%emt 0:03:58]} 12. a5 {[%emt 0:02:30]} b5 {[%emt 0:01:11]} 13. c4 {[%emt 0:00:31]} Rb8 {[%emt 0:06:59]} 14. cxb5 {[%emt 0:02:19]} exd4 {[%emt 0:09:45]} (14... Bxf3 $11 {keeps the balance.} 15. Bxf3 Rxb5) 15. exd4 $16 {[%emt 0:03:46]} Bxf3 {[%emt 0:10:10]} 16. Qxf3 {[%emt 0:03:04]} (16. Bxf3 $6 Rxb5 17. Qc4 c5 $11) 16... Bxd4 {[%emt 0:00:20]} 17. bxa6 {[%emt 0:11:00]} (17. Nc3 $16) 17... Bxb2 {[%emt 0:04:59]} ({Black should play} 17... Rxb2 $14 18. Na3 Rxe2) 18. Ra2 {[%emt 0:01:48] aiming for a7.} Bd4 {[%emt 0:04:37]} (18... Be5 $142) 19. Na3 $1 {[%emt 0:01:41]} Ng7 {[%emt 0:08:34]} (19... Ne5 $16 20. Bxe5 dxe5) 20. Nb5 {[%emt 0:01:49]} Ne6 {[%emt 0:02:04]} 21. Bc4 {[%emt 0:01:57][%cal Be2c4,Bc4d5,Bd5c6][%mdl 32]} Be5 {[%emt 0:07:32]} 22. a7 {[%emt 0:02:37] White is much more active.} Rc8 {[%emt 0:01:14]} 23. Qe3 {[%emt 0:11:05]} Qf6 {[%emt 0:10:22]} (23... Bxh2+ {is a better defense.} 24. Kxh2 Nec5) 24. Bd5 $18 {[%emt 0:03:16]} c6 {[%emt 0:02:39]} 25. a8=Q {[%emt 0:00:15]} ({Not} 25. Nxd6 Bxh2+ 26. Kxh2 cxd5 $16) 25... Rxa8 {[%emt 0:00:02]} 26. Bxc6 {[%emt 0:00:07]} Rad8 {[%emt 0:00:03]} 27. Bg3 {[%emt 0:11:28][%cal Bh2g3,Bg3f2,Bf2d4,Bd4b6,Bb6c7][%mdl 32]} ({And not} 27. Nxd6 Nd4 28. Bxe5 Nxe5 $11) 27... Nb8 {[%emt 0:01:51][%cal Bd7b8,Bb8a6,Ba6b4][%mdl 32] [#]} 28. Bd5 {[%emt 0:01:55]} Na6 {[%emt 0:00:14] [#]} 29. f4 $1 {[%emt 0:02:39]} Bd4 {[%emt 0:00:22]} 30. Nxd4 {[%emt 0:00:06]} Nxd4 {[%emt 0:00:16]} 31. Bf2 {[%emt 0:05:51] A strong pair of Bishops.} Nb4 {[%emt 0:00:19] Dodges Qd3} 32. Qxd4 {[%emt 0:00:10]} Qxd4 {[%emt 0:00:03]} 33. Bxd4 {[%emt 0:00:05][%cal Od4b6] Black must now prevent Bb6!} Nxd5 {[%emt 0:00:07]} 34. a6 {[%emt 0:00:15]} Nb4 {[%emt 0:02:41]} 35. Ra4 {[%emt 0:00:13]} Nc6 {[%emt 0:00:12]} 36. Bb6 {[%emt 0:01:36]} Rd7 {[%emt 0:01:07]} 37. Rc1 {[%emt 0:03:48]} Na7 {[%emt 0:00:20]} 38. Rc7 {[%emt 0:00:47]} Rxc7 {[%emt 0:01:30]} 39. Bxc7 {[%emt 0:00:02]} d5 {[%emt 0:01:02]} 40. Rb4 {[%emt 0:01:10] Weighted Error Value: White=0.12 (very precise) /Black=0.28 (precise) .  Mistake:       	White=1     	Black=5      Inaccurate:     	---       	Black=2      OK:         	White=14    	Black=12     Best:        	White=1     	Black=1      Strong:       	White=1     	---} 1-0